fUSD/lending_fUSD_20260405
["ID","MTS","AMOUNT","RATE_DAILY","PERIOD"]
[419832543,1775404257891,-500.0,0.00015899,2]
[419832544,1775404257901,-500.0,0.00015899,2]
[419832545,1775404257910,-500.0,0.00015899,2]
[419832546,1775404257921,-500.0,0.00015899,2]
[419832547,1775404257931,-500.0,0.00015899,2]
[419832548,1775404257940,-500.0,0.00015899,2]
[419832549,1775404257950,-500.0,0.00015899,2]
[419832550,1775404257960,-500.0,0.00015899,2]
[419832551,1775404257971,-500.0,0.00015899,2]
[419832552,1775404257980,-500.0,0.00015899,2]
[419832553,1775404257991,-500.0,0.00015899,2]
[419832554,1775404258001,-500.0,0.00015899,2]
[419832555,1775404258011,-500.0,0.00015899,2]
[419832556,1775404258020,-500.0,0.00015899,2]
[419832557,1775404258031,-500.0,0.00015899,2]
[419832558,1775404258041,-500.0,0.00015899,2]
[419832559,1775404258050,-500.0,0.00015899,2]
[419832560,1775404258060,-500.0,0.00015899,2]
[419832561,1775404258070,-500.0,0.00015899,2]
[419832562,1775404258080,-500.0,0.00015899,2]
[419832563,1775404258090,-500.0,0.00015899,2]
[419832564,1775404258100,-500.0,0.00015899,2]
[419832565,1775404258111,-500.0,0.00015899,2]
[419832566,1775404258120,-500.0,0.00015899,2]
[419832567,1775404258129,-500.0,0.00015899,2]
[419832568,1775404258139,-500.0,0.00015899,2]
[419832569,1775404258148,-500.0,0.00015899,2]
[419832570,1775404258158,-500.0,0.00015899,2]
[419832571,1775404258167,-500.0,0.00015899,2]
[419832572,1775404258177,-500.0,0.00015899,2]
[419832573,1775404258187,-500.0,0.00015899,2]
[419832574,1775404258198,-50154.49209134,0.000159,2]
[419832575,1775404258207,-1779609.15257963,0.000159,5]
[419832576,1775404258218,-25000.0,0.000159,3]
[419832577,1775404258228,-151.0,0.000159,2]
[419832578,1775404258237,-151.0,0.000159,2]
[419832579,1775404258248,-151.0,0.000159,2]
[419832580,1775404258263,-151.0,0.000159,2]
[419832581,1775404258273,-151.0,0.000159,2]
[419832582,1775404258284,-151.0,0.000159,2]
[419832583,1775404258296,-151.0,0.000159,2]
[419832584,1775404258306,-151.0,0.000159,2]
[419832585,1775404258317,-151.0,0.000159,2]
[419832586,1775404258328,-151.0,0.000159,2]
[419832587,1775404258339,-151.0,0.000159,2]
[419832588,1775404258349,-151.0,0.000159,2]
[419832589,1775404258360,-892.448042,0.000159,2]
[419832590,1775404258370,-892.448042,0.000159,2]
[419832591,1775404258380,-892.448042,0.000159,2]
[419832592,1775404258390,-892.448042,0.000159,2]
[419832593,1775404258404,-11798.07560763,0.000159,2]
[419832594,1775404258415,-1504.0387564,0.000159,2]
[419832595,1775404258425,-11867.35567414,0.000159,2]
[419832596,1775404258435,-2000.0,0.00015901,2]
[419832597,1775404258445,-150.0,0.0001591,2]
[419832598,1775404258455,-150.0,0.00015911,2]
[419832599,1775404258465,-150.0,0.00015912,2]
[419832600,1775404258477,-150.0,0.00015914,2]
[419832601,1775404258487,-150.0,0.00015916,2]
[419832602,1775404258497,-150.0,0.00015916,2]
[419832603,1775404258508,-150.0,0.00015917,2]
[419832604,1775404258518,-1000.0,0.00015921,2]
[419832605,1775404258528,-1000.0,0.00015921,2]
[419832606,1775404258539,-150.0,0.0001593,2]
[419832607,1775404258549,-5888.0,0.0001593,2]
[419832608,1775404258560,-150.0,0.00015932,2]
[419832609,1775404258570,-150.0,0.00015938,2]
[419832610,1775404258581,-150.0,0.00015938,2]
[419832611,1775404258592,-150.0,0.00015943,2]
[419832612,1775404258602,-150.0,0.00015944,2]
[419832613,1775404258613,-150.0,0.00015944,2]
[419832614,1775404258623,-150.0,0.00015947,2]
[419832615,1775404258633,-150.0,0.00015948,2]
[419832616,1775404258644,-150.0,0.00015955,2]
[419832617,1775404258654,-1326.87745236,0.00015958,2]
[419832618,1775404258665,-200.0,0.00015958,2]
[419832619,1775404258675,-200.0,0.00015958,2]
[419832620,1775404258686,-200.0,0.00015958,2]
[419832621,1775404258696,-150.0,0.00015958,2]
[419832622,1775404258707,-5000.0,0.0001596,2]
[419832623,1775404258718,-150.0,0.00015965,2]
[419832624,1775404258728,-150.0,0.00015971,2]
[419832625,1775404258739,-150.0,0.00015972,2]
[419832626,1775404258749,-150.0,0.00015972,2]
[419832627,1775404258759,-2087.43203834,0.00015974,2]
[419832628,1775404258770,-150.0,0.00015977,2]
[419832629,1775404258780,-150.0,0.00015979,2]
[419832630,1775404258790,-150.0,0.00015982,2]
[419832631,1775404258800,-2499.07667565,0.00015984,2]
[419832632,1775404258810,-183.43116859,0.00015984,2]
[419832633,1775404258820,-253.729973,0.00015997,2]
[419832634,1775404258831,-666.0,0.00015999,2]
[419832635,1775404258840,-666.0,0.00015999,2]
[419832636,1775404258851,-666.0,0.00015999,2]
[419832637,1775404258861,-666.0,0.00015999,2]
[419832638,1775404258872,-1233.74,0.00015999,2]
[419832639,1775404258882,-1233.74,0.00015999,2]
[419832640,1775404258892,-1233.74,0.00015999,2]
[419832641,1775404258903,-1233.74,0.00015999,2]
[419832642,1775404258913,-1233.82978926,0.00015999,2]
[419832643,1775404258924,-537.2,0.00015999,2]
[419832644,1775404258936,-537.2,0.00015999,2]
[419832645,1775404258947,-537.2,0.00015999,2]
[419832646,1775404258957,-537.2,0.00015999,2]
[419832647,1775404258968,-537.40397972,0.00015999,2]
[419832648,1775404258978,-737.59,0.00015999,2]
[419832649,1775404258988,-737.59,0.00015999,2]
[419832650,1775404258998,-737.59,0.00015999,2]
[419832651,1775404259008,-737.59,0.00015999,2]
[419832652,1775404259019,-737.8298975,0.00015999,2]
[419832653,1775404259029,-500.0,0.00015999,2]
[419832654,1775404259039,-500.0,0.00015999,2]
[419832655,1775404259050,-500.0,0.00016,2]
[419832656,1775404259061,-153.46464446,0.00016,2]
[419832657,1775404259071,-239.33677057,0.00016,2]
[419832658,1775404259081,-214.21185671,0.00016,2]
[419832659,1775404259091,-150.14541726,0.00016,2]
[419832660,1775404259103,-152.6137269,0.00016,2]
[419832661,1775404259113,-150.17540857,0.00016,2]
[419832662,1775404259124,-151.01430456,0.00016,2]
[419832663,1775404259402,-151.22967101,0.00016,2]
[419832664,1775404259412,-233.2638427,0.00016,2]
[419832665,1775404259422,-287.38140471,0.00016,2]
[419832666,1775404259433,-150.60277619,0.00016,2]
[419832667,1775404259443,-234.65590515,0.00016,2]
[419832668,1775404259453,-267.10584669,0.00016,2]
[419832669,1775404259464,-151.75828689,0.00016,2]
[419832670,1775404259474,-815573.98482186,0.00016,2]
[419832671,1775404260516,-15259.90344537,0.00016,2]
[419832672,1775404260527,-363.98,0.00016,2]
[419832673,1775404260914,-3787.59697814,0.00016,2]
[419832674,1775404260927,-150805.45810889,0.00016,2]
[419832675,1775404260939,-1870.30207991,0.00016,2]
[419832676,1775404260951,-815.91901641,0.00016,2]
[419832677,1775404261623,-475.2381222,0.00015471,2]
[419832678,1775404262776,-2468.37234175,0.00015471,2]
[419832679,1775404262895,-313.11386646,0.00015471,2]
[419832680,1775404262908,-12353.09566959,0.00015471,2]
[419832681,1775404262919,-174.2635,0.000157,2]
[419832682,1775404262929,-174.2635,0.000157,2]
[419832683,1775404262941,-174.2635,0.000157,2]
[419832684,1775404262951,-7124.11383041,0.00016,2]
[419832685,1775404264272,-1038.79349197,0.00014277,2]
[419832686,1775404264282,-310.3448609,0.00016,2]
[419832687,1775404264372,-2494.13208423,0.00016,2]
[419832688,1775404280340,150.0,8.276e-05,2]
[419832689,1775404285022,500.0,7.681e-05,2]
[419832690,1775404285077,500.0,7.681e-05,2]
[419832691,1775404285119,500.0,7.681e-05,2]
[419832692,1775404285158,500.0,7.681e-05,2]
[419832693,1775404285199,500.0,7.681e-05,2]
[419832694,1775404285238,500.0,7.681e-05,2]
[419832695,1775404285272,613.53625782,7.681e-05,2]
[419832696,1775404285314,500.0,7.681e-05,2]
[419832697,1775404285394,500.0,7.681e-05,2]
[419832698,1775404285436,500.0,7.681e-05,2]
[419832699,1775404285492,500.0,7.681e-05,2]
[419832700,1775404285557,500.0,7.681e-05,2]
[419832701,1775404285607,500.0,7.681e-05,2]
[419832702,1775404285654,500.0,7.681e-05,2]
[419832703,1775404285711,500.0,7.681e-05,2]
[419832704,1775404318349,500.0,8.219e-05,2]
[419832705,1775404318384,500.0,8.219e-05,2]
[419832706,1775404318414,500.0,8.219e-05,2]
[419832707,1775404318463,500.0,8.219e-05,2]
[419832708,1775404318538,500.0,8.219e-05,2]
[419832709,1775404318591,500.0,8.219e-05,2]
[419832710,1775404318642,500.0,8.219e-05,2]
[419832711,1775404318676,363.88656033,8.219e-05,2]
[419832712,1775404318720,500.0,8.219e-05,2]
[419832714,1775404344718,186.97447771,7.681e-05,2]
[419832716,1775404356708,230.32324525,7.681e-05,2]
[419832723,1775404548228,218.11,8.396e-05,2]
[419832726,1775404856868,15923.16310307,8.8e-05,4]
[419832728,1775405004862,1207.78121921,8.8e-05,4]
[419832734,1775405225666,-179.64227645,0.00010989,2]
[419832735,1775405225690,-5000.0,0.00010991,2]
[419832736,1775405225714,-300.0,0.00010992,2]
[419832737,1775405225738,-11811.90215051,0.00010993,2]
[419832739,1775405259583,10000.01,8e-05,2]
[419832740,1775405259605,600.0,8e-05,2]
[419832741,1775405260064,264.0,8e-05,2]
[419832750,1775405431987,-14894.42353811,0.000107,2]
[419832759,1775405437843,-500.0,0.00010699,2]
[419832760,1775405437853,-500.0,0.00010699,2]
[419832761,1775405437863,-345.94847309,0.00010699,2]
[419832762,1775405437874,-311.42928178,0.00010699,2]
[419832763,1775405437884,-303.2729091,0.000107,2]
[419832846,1775405439032,-1921.28271411,0.000107,2]
[419832849,1775405439051,-1720931.42082408,0.000107,2]
[419832851,1775405439060,-174.20937584,0.00010919,2]
[419832853,1775405439070,-600.0,0.00010979,2]
[419832855,1775405439079,-300.0,0.00010979,2]
[419832857,1775405439088,-375.99491046,0.00010979,2]
[419832859,1775405439097,-600.0,0.00010986,2]
[419832861,1775405439107,-600.0,0.00010986,2]
[419832863,1775405439116,-250.0,0.00010997,2]
[419832865,1775405439126,-2604.59251375,0.00011,2]
[419832867,1775405439135,-1200.0,0.00011018,2]
[419832869,1775405439144,-5000.0,0.00011019,2]
[419832871,1775405439154,-300.0,0.00011024,2]
[419832873,1775405439163,-300.0,0.00011024,2]
[419832875,1775405439172,-250.0,0.00011025,2]
[419832877,1775405439181,-1381.46684249,0.00011097,2]
[419832879,1775405439190,-150.0,0.00011097,2]
[419832881,1775405439199,-299.99,0.00011098,2]
[419832883,1775405439208,-9999.99,0.00011098,2]
[419832885,1775405439218,-150.99,0.00011098,2]
[419832887,1775405439227,-150.99,0.00011098,2]
[419832889,1775405439236,-1852.42,0.00011318,2]
[419832891,1775405439246,-500.0,0.00011491,2]
[419832893,1775405439255,-595.25320795,0.00011491,2]
[419832895,1775405439265,-151.0,0.00011491,2]
[419832897,1775405439274,-174.61919141,0.00011491,2]
[419832899,1775405439283,-329.2835348,0.00011491,2]
[419832900,1775405439293,-170.0,0.00011491,2]
[419832903,1775405439302,-170.0,0.00011491,2]
[419832904,1775405439311,-170.0,0.00011491,2]
[419832906,1775405439321,-170.0,0.00011491,2]
[419832908,1775405439330,-170.0,0.00011491,2]
[419832910,1775405439340,-170.0,0.00011491,2]
[419832912,1775405439350,-170.0,0.00011491,2]
[419832914,1775405439360,-170.0,0.00011491,2]
[419832916,1775405439370,-170.0,0.00011491,2]
[419832918,1775405439379,-170.0,0.00011491,2]
[419832920,1775405439388,-170.0,0.00011491,2]
[419832922,1775405439398,-170.0,0.00011491,2]
[419832924,1775405439407,-500.0,0.00011546,2]
[419832926,1775405439416,-151.0,0.00011546,2]
[419832928,1775405439426,-500.0,0.00011601,2]
[419832930,1775405439435,-151.0,0.00011601,2]
[419832932,1775405439445,-500.0,0.00011656,2]
[419832934,1775405439454,-151.0,0.00011656,2]
[419832936,1775405439464,-500.0,0.00011711,2]
[419832938,1775405439473,-151.0,0.00011711,2]
[419832940,1775405439482,-500.0,0.00011766,2]
[419832942,1775405439491,-151.0,0.00011766,2]
[419832944,1775405439501,-174.20937584,0.00011768,2]
[419832946,1775405439510,-500.0,0.00011821,2]
[419832948,1775405439520,-151.0,0.00011821,2]
[419832950,1775405439529,-500.0,0.00011868,2]
[419832952,1775405439539,-500.0,0.00011868,2]
[419832954,1775405439548,-500.0,0.00011868,2]
[419832956,1775405439558,-500.0,0.00011868,2]
[419832958,1775405439567,-500.0,0.00011868,2]
[419832961,1775405439577,-500.0,0.00011868,2]
[419832962,1775405439586,-695.39793187,0.00011868,2]
[419832964,1775405439597,-500.0,0.00011868,2]
[419832966,1775405439607,-500.0,0.00011868,2]
[419832968,1775405439617,-500.0,0.00011868,2]
[419832970,1775405439626,-500.0,0.00011868,2]
[419832973,1775405439636,-500.0,0.00011868,2]
[419832975,1775405439645,-500.0,0.00011868,2]
[419832976,1775405439656,-500.0,0.00011868,2]
[419832978,1775405439666,-500.0,0.00011868,2]
[419832980,1775405439675,-475.5204151,0.00011868,2]
[419832982,1775405439684,-500.0,0.00011868,2]
[419832984,1775405439693,-500.0,0.00011868,2]
[419832986,1775405439703,-500.0,0.00011868,2]
[419832988,1775405439712,-733.76893115,0.00011868,2]
[419832990,1775405439722,-500.0,0.00011868,2]
[419832992,1775405439731,-500.0,0.00011868,2]
[419832994,1775405439740,-500.0,0.00011868,2]
[419832996,1775405439749,-500.0,0.00011868,2]
[419832998,1775405439758,-151.0,0.00011868,2]
[419833000,1775405439767,-500.0,0.00011868,2]
[419833002,1775405439777,-151.0,0.00011868,2]
[419833004,1775405439786,-500.0,0.00011868,2]
[419833006,1775405439796,-151.0,0.00011868,2]
[419833007,1775405439805,-309.18885243,0.00011868,2]
[419833008,1775405439814,-151.0,0.00011868,2]
[419833009,1775405439824,-151.0,0.00011868,2]
[419833010,1775405439833,-151.0,0.00011868,2]
[419833011,1775405439843,-743.50770149,0.00011868,2]
[419833012,1775405439852,-151.0,0.00011868,2]
[419833013,1775405439862,-151.0,0.00011868,2]
[419833014,1775405439871,-151.0,0.00011868,2]
[419833015,1775405439880,-151.0,0.00011868,2]
[419833016,1775405439889,-151.0,0.00011868,2]
[419833017,1775405439898,-151.0,0.00011868,2]
[419833019,1775405439907,-3000.0,0.00011868,2]
[419833021,1775405439916,-240.61840911,0.00011868,2]
[419833023,1775405439929,-279.9045709,0.00011868,2]
[419833025,1775405439939,-1000.0,0.00011868,2]
[419833027,1775405439948,-1000.0,0.00011868,2]
[419833029,1775405439957,-1000.0,0.00011868,2]
[419833031,1775405439966,-1000.0,0.00011868,2]
[419833033,1775405439975,-1000.0,0.00011868,2]
[419833035,1775405439985,-174.60324019,0.00011868,2]
[419833037,1775405439995,-150.0,0.00011873,2]
[419833039,1775405440004,-10891.57,0.00011875,2]
[419833041,1775405440014,-500.0,0.00011876,2]
[419833043,1775405440023,-151.0,0.00011876,2]
[419833045,1775405440032,-500.0,0.00011931,2]
[419833047,1775405440042,-151.0,0.00011931,2]
[419833049,1775405440051,-500.0,0.00011986,2]
[419833051,1775405440060,-151.0,0.00011986,2]
[419833053,1775405440070,-600.0,0.00012011,2]
[419833055,1775405440079,-600.0,0.00012011,2]
[419833057,1775405440088,-3854.52103281,0.00012011,2]
[419833060,1775405440098,-300.0,0.00012011,2]
[419833062,1775405440107,-181.08010149,0.00012039,2]
[419833064,1775405440116,-500.0,0.00012041,2]
[419833066,1775405440128,-151.0,0.00012041,2]
[419833068,1775405440137,-5000.0,0.00012088,2]
[419833070,1775405440146,-250.0,0.00012093,2]
[419833072,1775405440155,-500.0,0.00012096,2]
[419833074,1775405440164,-151.0,0.00012096,2]
[419833076,1775405440173,-300.0,0.00012114,2]
[419833078,1775405440182,-1680.0,0.00012119,2]
[419833079,1775405440191,-255.0,0.00012151,2]
[419833081,1775405440200,-150.0,0.000123,2]
[419833083,1775405440209,-771.01748645,0.00012416,2]
[419833085,1775405440218,-290.26104003,0.00012416,2]
[419833088,1775405440230,-150.0,0.00012474,2]
[419833090,1775405440240,-267.272602,0.00012475,2]
[419833092,1775405440249,-309.90283068,0.000125,2]
[419833094,1775405440258,-2324.8296,0.00012528,2]
[419833096,1775405440268,-34411.2167,0.00012528,2]
[419833098,1775405440277,-160.0,0.00012544,2]
[419833100,1775405440286,-187.78006525,0.00012587,2]
[419833102,1775405440295,-1500.0,0.00012886,2]
[419833104,1775405440304,-155.72826672,0.000129,2]
[419833105,1775405440313,-799.54513345,0.00012964,2]
[419833107,1775405440322,-301.00069851,0.00012964,2]
[419833109,1775405440332,-64691.17402393,0.00012999,2]
[419833111,1775405440341,-5651.24226969,0.00013,2]
[419833113,1775405440350,-1811.5322899,0.00013,15]
[419833115,1775405440359,-250.0,0.00013,2]
[419833117,1775405440368,-5390.67222516,0.0001305,2]
[419833119,1775405440378,-504.0,0.00013111,2]
[419833121,1775405440387,-194.72792766,0.00013135,2]
[419833123,1775405440396,-155.72826666,0.00013263,2]
[419833125,1775405440405,-189.5773225,0.00013298,2]
[419833127,1775405440414,-433.0,0.00013305,2]
[419833129,1775405440424,-2351.0,0.00013331,2]
[419833131,1775405440434,-500.0,0.0001334,2]
[419833133,1775405440443,-169.2072,0.000135,2]
[419833135,1775405440452,-1000.0,0.000135,2]
[419833137,1775405440461,-829.12830338,0.00013512,2]
[419833139,1775405440470,-284.74539875,0.00013512,2]
[419833141,1775405440479,-387.75,0.0001353,2]
[419833143,1775405440488,-155.72826666,0.00013625,2]
[419833145,1775405440498,-150.0,0.00013644,2]
[419833147,1775405440507,-201.93286099,0.00013683,2]
[419833149,1775405440516,-500.0,0.00013695,2]
[419833151,1775405440527,-500.0,0.00013698,2]
[419833153,1775405440537,-500.0,0.00013698,2]
[419833155,1775405440546,-500.0,0.00013698,2]
[419833157,1775405440556,-500.0,0.00013698,2]
[419833159,1775405440565,-500.0,0.00013698,2]
[419833161,1775405440574,-500.0,0.00013698,2]
[419833163,1775405440583,-500.0,0.00013698,2]
[419833165,1775405440592,-500.0,0.00013698,2]
[419833167,1775405440602,-500.0,0.00013698,2]
[419833169,1775405440612,-500.0,0.00013698,2]
[419833171,1775405440621,-500.0,0.00013698,2]
[419833173,1775405440631,-500.0,0.00013698,2]
[419833175,1775405440641,-500.0,0.00013698,2]
[419833177,1775405440650,-500.0,0.00013698,2]
[419833179,1775405440659,-500.0,0.00013698,2]
[419833181,1775405440669,-500.0,0.00013698,2]
[419833184,1775405440679,-500.0,0.00013698,2]
[419833185,1775405440690,-500.0,0.00013698,2]
[419833188,1775405440702,-500.0,0.00013698,2]
[419833190,1775405440712,-500.0,0.00013698,2]
[419833192,1775405440721,-500.0,0.00013698,2]
[419833194,1775405440731,-500.0,0.00013698,2]
[419833196,1775405440741,-500.0,0.00013698,2]
[419833198,1775405440750,-500.0,0.00013698,2]
[419833200,1775405440759,-500.0,0.00013698,2]
[419833202,1775405440768,-500.0,0.00013698,2]
[419833204,1775405440778,-500.0,0.00013698,2]
[419833206,1775405440787,-500.0,0.00013698,2]
[419833208,1775405440798,-500.0,0.00013698,2]
[419833210,1775405440807,-500.0,0.00013698,2]
[419833212,1775405440816,-500.0,0.00013698,2]
[419833214,1775405440825,-500.0,0.00013698,2]
[419833216,1775405440834,-500.0,0.00013698,2]
[419833218,1775405440843,-500.0,0.00013698,2]
[419833220,1775405440853,-500.0,0.00013698,2]
[419833222,1775405440863,-500.0,0.00013698,2]
[419833223,1775405440873,-432.99,0.00013698,2]
[419833225,1775405440883,-500.0,0.00013698,2]
[419833227,1775405440893,-500.0,0.00013698,2]
[419833229,1775405440904,-500.0,0.00013698,2]
[419833231,1775405440913,-500.0,0.00013698,2]
[419833234,1775405440924,-500.0,0.00013698,2]
[419833236,1775405440934,-500.0,0.00013698,2]
[419833238,1775405440949,-500.0,0.00013698,2]
[419833240,1775405440958,-500.0,0.00013698,2]
[419833242,1775405440968,-500.0,0.00013698,2]
[419833244,1775405440979,-500.0,0.00013698,2]
[419833247,1775405440989,-331.09,0.00013698,2]
[419833249,1775405440998,-500.0,0.00013698,2]
[419833251,1775405441008,-500.0,0.00013698,2]
[419833253,1775405441017,-500.0,0.00013698,2]
[419833255,1775405441027,-500.0,0.00013698,2]
[419833257,1775405441036,-500.0,0.00013698,2]
[419833259,1775405441046,-500.0,0.00013698,2]
[419833261,1775405441055,-500.0,0.00013698,2]
[419833263,1775405441065,-331.74,0.00013698,2]
[419833265,1775405441075,-500.0,0.00013698,2]
[419833267,1775405441084,-500.0,0.00013698,2]
[419833269,1775405441094,-500.0,0.00013698,2]
[419833271,1775405441104,-500.0,0.00013698,2]
[419833273,1775405441113,-500.0,0.00013698,2]
[419833275,1775405441123,-500.0,0.00013698,2]
[419833277,1775405441133,-500.0,0.00013698,2]
[419833279,1775405441143,-500.0,0.00013698,2]
[419833281,1775405441153,-500.0,0.00013698,2]
[419833283,1775405441162,-500.0,0.00013698,2]
[419833285,1775405441171,-500.0,0.00013698,2]
[419833287,1775405441181,-500.0,0.00013698,2]
[419833289,1775405441190,-364.29164001,0.00013698,2]
[419833291,1775405441200,-500.0,0.00013698,2]
[419833293,1775405441210,-500.0,0.00013698,2]
[419833295,1775405441219,-500.0,0.00013698,2]
[419833297,1775405441229,-500.0,0.00013698,2]
[419833299,1775405441238,-500.0,0.00013698,2]
[419833301,1775405441248,-500.0,0.00013698,2]
[419833303,1775405441257,-199.95,0.00013698,2]
[419833305,1775405441267,-500.0,0.00013698,2]
[419833307,1775405441276,-500.0,0.00013698,2]
[419833309,1775405441286,-500.0,0.00013698,2]
[419833311,1775405441296,-500.0,0.00013698,2]
[419833313,1775405441305,-500.0,0.00013698,2]
[419833316,1775405441315,-444.95,0.00013698,2]
[419833318,1775405441325,-500.0,0.00013698,2]
[419833320,1775405441334,-500.0,0.00013698,2]
[419833322,1775405441344,-500.0,0.00013698,2]
[419833324,1775405441354,-500.0,0.00013698,2]
[419833326,1775405441363,-500.0,0.00013698,2]
[419833328,1775405441373,-500.0,0.00013698,2]
[419833330,1775405441383,-500.0,0.00013698,2]
[419833331,1775405441395,-500.0,0.00013698,2]
[419833334,1775405441405,-500.0,0.00013698,2]
[419833335,1775405441415,-346.23278756,0.00013698,2]
[419833337,1775405441425,-500.0,0.00013698,2]
[419833339,1775405441435,-500.0,0.00013698,2]
[419833341,1775405441445,-500.0,0.00013698,2]
[419833343,1775405441454,-500.0,0.00013698,2]
[419833345,1775405441464,-500.0,0.00013698,2]
[419833347,1775405441473,-500.0,0.00013698,2]
[419833349,1775405441482,-500.0,0.00013698,2]
[419833351,1775405441492,-500.0,0.00013698,2]
[419833353,1775405441502,-500.0,0.00013698,2]
[419833355,1775405441511,-500.0,0.00013698,2]
[419833357,1775405441521,-500.0,0.00013698,2]
[419833359,1775405441531,-500.0,0.00013698,2]
[419833361,1775405441541,-500.0,0.00013698,2]
[419833363,1775405441550,-500.0,0.00013698,2]
[419833365,1775405441560,-500.0,0.00013698,2]
[419833367,1775405441569,-500.0,0.00013698,2]
[419833369,1775405441579,-500.0,0.00013698,2]
[419833371,1775405441589,-500.0,0.00013698,2]
[419833373,1775405441599,-500.0,0.00013698,2]
[419833375,1775405441608,-500.0,0.00013698,2]
[419833377,1775405441618,-223.40397972,0.00013698,2]
[419833379,1775405441628,-500.0,0.00013698,2]
[419833381,1775405441637,-500.0,0.00013698,2]
[419833382,1775405441647,-500.0,0.00013698,2]
[419833383,1775405441657,-500.0,0.00013698,2]
[419833384,1775405441666,-500.0,0.00013698,2]
[419833385,1775405441675,-500.0,0.00013698,2]
[419833386,1775405441685,-500.0,0.00013698,2]
[419833387,1775405441694,-500.0,0.00013698,2]
[419833388,1775405441703,-500.0,0.00013698,2]
[419833389,1775405441713,-500.0,0.00013698,2]
[419833391,1775405441723,-500.0,0.00013698,2]
[419833393,1775405441732,-500.0,0.00013698,2]
[419833395,1775405441742,-500.0,0.00013698,2]
[419833397,1775405441752,-500.0,0.00013698,2]
[419833399,1775405441761,-500.0,0.00013698,2]
[419833401,1775405441771,-500.0,0.00013698,2]
[419833404,1775405441780,-500.0,0.00013698,2]
[419833406,1775405441790,-500.0,0.00013698,2]
[419833408,1775405441800,-500.0,0.00013698,2]
[419833410,1775405441810,-500.0,0.00013698,2]
[419833412,1775405441819,-500.0,0.00013698,2]
[419833414,1775405441828,-500.0,0.00013698,2]
[419833416,1775405441838,-500.0,0.00013698,2]
[419833418,1775405441847,-500.0,0.00013698,2]
[419833420,1775405441857,-500.0,0.00013698,2]
[419833422,1775405441867,-500.0,0.00013698,2]
[419833424,1775405441876,-500.31918003,0.00013698,2]
[419833426,1775405441885,-500.0,0.00013698,2]
[419833428,1775405441895,-500.0,0.00013698,2]
[419833430,1775405441904,-500.0,0.00013698,2]
[419833432,1775405441914,-500.0,0.00013698,2]
[419833434,1775405441924,-500.0,0.00013698,2]
[419833436,1775405441933,-500.0,0.00013698,2]
[419833438,1775405441942,-500.0,0.00013698,2]
[419833440,1775405441952,-500.0,0.00013698,2]
[419833442,1775405441961,-500.0,0.00013698,2]
[419833444,1775405441971,-500.0,0.00013698,2]
[419833446,1775405441980,-500.0,0.00013698,2]
[419833448,1775405441990,-500.0,0.00013698,2]
[419833450,1775405441999,-500.0,0.00013698,2]
[419833452,1775405442008,-500.0,0.00013698,2]